lending/lending_fUSD_20250224
["ID","MTS","AMOUNT","RATE_DAILY","PERIOD"]
[354259547,1740370251047,-1026.41,0.00016684,2]
[354259548,1740370251056,-500.0,0.00016684,2]
[354259549,1740370251065,-1040.13,0.00016684,2]
[354259550,1740370251075,-1687.26,0.00016684,2]
[354259551,1740370251083,-990.37,0.00016684,2]
[354259552,1740370251092,-500.0,0.00016684,2]
[354259553,1740370251101,-1952.17,0.00016684,2]
[354259554,1740370251111,-3199.22,0.00016684,2]
[354259555,1740370251120,-1386.4,0.00016684,2]
[354259556,1740370251129,-429.35867346,0.00016684,2]
[354259557,1740370251138,-357.60512292,0.00016684,2]
[354259558,1740370251148,-1126.95,0.00016684,2]
[354259559,1740370251159,-2480.34,0.00016684,2]
[354259560,1740370251167,-2631.9,0.00016684,2]
[354259561,1740370251176,-4039.48,0.00016684,2]
[354259562,1740370251185,-572.26,0.00016684,2]
[354259563,1740370251194,-3534.61,0.00016684,2]
[354259564,1740370251203,-500.0,0.00016684,2]
[354259565,1740370251212,-3523.63,0.00016684,2]
[354259566,1740370251221,-1787.16,0.00016684,2]
[354259567,1740370251230,-1888.6,0.00016684,2]
[354259568,1740370251240,-9640.15,0.00016684,2]
[354259569,1740370251250,-500.0,0.00016684,2]
[354259570,1740370251259,-2409.95,0.00016684,2]
[354259571,1740370251268,-2352.02,0.00016684,2]
[354259572,1740370251278,-1485.16,0.00016684,2]
[354259573,1740370251287,-500.0,0.00016684,2]
[354259574,1740370251296,-811.15,0.00016684,2]
[354259575,1740370251306,-500.0,0.00016684,2]
[354259576,1740370251315,-583.37,0.00016684,2]
[354259577,1740370251324,-2357.84,0.00016684,2]
[354259578,1740370251333,-739.0,0.00016684,2]
[354259579,1740370251342,-709.38,0.00016684,2]
[354259580,1740370251352,-4243.19,0.00016684,2]
[354259581,1740370251361,-1367.15,0.00016684,2]
[354259582,1740370251371,-3442.95,0.00016684,2]
[354259583,1740370251380,-2307.0,0.00016684,2]
[354259584,1740370251389,-853.06,0.00016684,2]
[354259585,1740370251398,-500.0,0.00016684,2]
[354259586,1740370251410,-500.0,0.00016684,2]
[354259587,1740370251419,-269.31005074,0.00016685,2]
[354259588,1740370251428,-204.0,0.0001669,2]
[354259589,1740370251438,-344.20134243,0.000167,2]
[354259590,1740370251447,-600.57839249,0.000167,2]
[354259591,1740370251456,-1000.0,0.000167,6]
[354259592,1740370251466,-239.87115715,0.00016703,2]
[354259593,1740370251475,-500.0,0.00016711,2]
[354259594,1740370251484,-500.0,0.00016739,2]
[354259595,1740370251493,-165.40619791,0.0001674,2]
[354259596,1740370251502,-441.19773207,0.00016749,2]
[354259597,1740370251512,-173.27022059,0.00016749,2]
[354259598,1740370251521,-819.83,0.00016757,2]
[354259599,1740370251530,-1403.11454426,0.00016766,5]
[354259600,1740370251540,-500.0,0.00016766,2]
[354259601,1740370251549,-500.0,0.00016766,2]
[354259602,1740370251558,-500.0,0.00016766,2]
[354259603,1740370251567,-500.0,0.00016766,2]
[354259604,1740370251576,-500.0,0.00016766,2]
[354259605,1740370251585,-500.0,0.00016766,2]
[354259606,1740370251595,-500.0,0.00016766,2]
[354259607,1740370251604,-500.0,0.00016766,2]
[354259608,1740370251613,-998.0,0.00016766,2]
[354259609,1740370251622,-708.07,0.00016766,2]
[354259610,1740370251630,-708.07,0.00016766,2]
[354259611,1740370251638,-300.0,0.00016766,2]
[354259612,1740370251647,-500.0,0.00016766,2]
[354259613,1740370251656,-931.01,0.00016767,2]
[354259614,1740370251665,-500.0,0.00016767,2]
[354259615,1740370251674,-150.0,0.00016767,2]
[354259616,1740370251684,-1007.77428721,0.00016767,2]
[354259617,1740370251693,-538.99395,0.00016767,2]
[354259618,1740370251702,-586.522083,0.00016767,2]
[354259619,1740370251711,-654.56,0.00016767,2]
[354259620,1740370251720,-561.51,0.00016767,2]
[354259621,1740370251728,-500.0,0.00016767,2]
[354259622,1740370251737,-500.0,0.00016767,2]
[354259623,1740370251745,-500.0,0.00016767,2]
[354259624,1740370251754,-500.0,0.00016767,2]
[354259625,1740370251763,-632.37,0.00016767,2]
[354259626,1740370251773,-500.0,0.00016767,2]
[354259627,1740370251782,-500.0,0.00016767,2]
[354259628,1740370251791,-500.0,0.00016767,2]
[354259629,1740370251800,-154.571206,0.00016767,2]
[354259630,1740370251809,-500.0,0.00016767,2]
[354259631,1740370251819,-500.0,0.00016767,2]
[354259632,1740370251828,-500.0,0.00016767,2]
[354259633,1740370251837,-536.73,0.00016767,2]
[354259634,1740370251846,-151.0,0.00016767,2]
[354259635,1740370251855,-500.0,0.00016767,2]
[354259636,1740370251864,-500.0,0.00016767,2]
[354259637,1740370251872,-500.0,0.00016767,2]
[354259638,1740370251881,-151.870238,0.00016767,2]
[354259639,1740370251890,-565.79,0.00016767,2]
[354259640,1740370251899,-585.43,0.00016767,2]
[354259641,1740370251909,-674.94,0.00016767,2]
[354259642,1740370251918,-500.0,0.00016767,2]
[354259643,1740370251927,-500.0,0.00016767,2]
[354259644,1740370251936,-745.66,0.00016767,2]
[354259645,1740370251945,-699.72,0.00016767,2]
[354259646,1740370251954,-500.0,0.00016767,2]
[354259647,1740370251963,-1904.22,0.00016767,2]
[354259648,1740370251975,-526.35,0.00016767,2]
[354259649,1740370251984,-500.0,0.00016767,2]
[354259650,1740370251993,-1002.13,0.00016767,2]
[354259651,1740370252002,-500.0,0.00016767,2]
[354259652,1740370252010,-1134.15,0.00016767,2]
[354259653,1740370252019,-500.0,0.00016767,2]
[354259654,1740370252028,-500.0,0.00016767,2]
[354259655,1740370252036,-571.09,0.00016767,2]
[354259656,1740370252045,-500.0,0.00016767,2]
[354259657,1740370252054,-553.86,0.00016767,2]
[354259658,1740370252066,-1052.61,0.00016767,2]
[354259659,1740370252075,-850.74,0.00016767,2]
[354259660,1740370252084,-1131.97,0.00016767,2]
[354259661,1740370252092,-500.0,0.00016767,2]
[354259662,1740370252101,-899.17,0.00016767,2]
[354259663,1740370252110,-500.0,0.00016767,2]
[354259664,1740370252118,-787.33,0.00016767,2]
[354259665,1740370252127,-500.0,0.00016767,2]
[354259666,1740370252137,-500.0,0.00016767,2]
[354259667,1740370252146,-500.0,0.00016767,2]
[354259668,1740370252156,-1272.39,0.00016767,2]
[354259669,1740370252164,-769.41,0.00016767,2]
[354259670,1740370252173,-891.59,0.00016767,2]
[354259671,1740370252182,-500.0,0.00016767,2]
[354259672,1740370252191,-746.3,0.00016767,2]
[354259673,1740370252200,-512.65,0.00016767,2]
[354259674,1740370252208,-1139.12,0.00016767,2]
[354259675,1740370252217,-629.92,0.00016767,2]
[354259676,1740370252227,-1166.53,0.00016767,2]
[354259677,1740370252236,-500.0,0.00016767,2]
[354259678,1740370252244,-500.0,0.00016767,2]
[354259679,1740370252253,-500.0,0.00016767,2]
[354259680,1740370252262,-500.0,0.00016767,2]
[354259681,1740370252271,-654.42,0.00016767,2]
[354259682,1740370252279,-500.0,0.00016767,2]
[354259683,1740370252288,-620.82,0.00016767,2]
[354259684,1740370252297,-500.0,0.00016767,2]
[354259685,1740370252306,-682.77,0.00016767,2]
[354259686,1740370252315,-589.28,0.00016767,2]
[354259687,1740370252324,-500.0,0.00016767,2]
[354259688,1740370252333,-677.74,0.00016767,2]
[354259689,1740370252342,-500.0,0.00016767,2]
[354259690,1740370252351,-500.0,0.00016767,2]
[354259691,1740370252360,-500.0,0.00016767,2]
[354259692,1740370252369,-500.0,0.00016767,2]
[354259693,1740370252378,-500.0,0.00016767,2]
[354259694,1740370252388,-500.0,0.00016767,2]
[354259695,1740370252397,-515.59,0.00016767,2]
[354259696,1740370252408,-500.0,0.00016767,2]
[354259697,1740370252418,-500.0,0.00016767,2]
[354259698,1740370252427,-973.07,0.00016767,2]
[354259699,1740370252437,-500.0,0.00016767,2]
[354259700,1740370252446,-531.07,0.00016767,2]
[354259701,1740370252455,-614.59,0.00016767,2]
[354259702,1740370252464,-673.96,0.00016767,2]
[354259703,1740370252473,-500.0,0.00016767,2]
[354259704,1740370252483,-545.54,0.00016767,2]
[354259705,1740370252492,-500.0,0.00016767,2]
[354259706,1740370252507,-500.0,0.00016767,2]
[354259707,1740370252516,-500.0,0.00016767,2]
[354259708,1740370252526,-546.89,0.00016767,2]
[354259709,1740370252535,-500.0,0.00016767,2]
[354259710,1740370252545,-583.18,0.00016767,2]
[354259711,1740370252554,-882.41,0.00016767,2]
[354259712,1740370252563,-500.0,0.00016767,2]
[354259713,1740370252572,-500.0,0.00016767,2]
[354259714,1740370252581,-502.84,0.00016767,2]
[354259715,1740370252590,-500.0,0.00016767,2]
[354259716,1740370252598,-576.49,0.00016767,2]
[354259717,1740370252607,-500.0,0.00016767,2]
[354259718,1740370252617,-500.0,0.00016767,2]
[354259719,1740370252626,-500.0,0.00016767,2]
[354259720,1740370252635,-500.0,0.00016767,2]
[354259721,1740370252644,-768.2,0.00016767,2]
[354259722,1740370252652,-500.0,0.00016767,2]
[354259723,1740370252663,-556.67,0.00016767,2]
[354259724,1740370252672,-500.0,0.00016767,2]
[354259725,1740370252680,-500.0,0.00016767,2]
[354259726,1740370252689,-781.2,0.00016767,2]
[354259727,1740370252698,-992.75,0.00016767,2]
[354259728,1740370252706,-845.58,0.00016767,2]
[354259729,1740370252715,-822.7,0.00016767,2]
[354259730,1740370252724,-519.67,0.00016767,2]
[354259731,1740370252732,-506.17,0.00016767,2]
[354259732,1740370252741,-1117.0,0.00016767,2]
[354259733,1740370252750,-500.0,0.00016767,2]
[354259734,1740370252758,-611.16,0.00016767,2]
[354259735,1740370252767,-500.0,0.00016767,2]
[354259736,1740370252776,-500.0,0.00016767,2]
[354259737,1740370252785,-500.0,0.00016767,2]
[354259738,1740370252793,-500.0,0.00016767,2]
[354259739,1740370252802,-1226.43,0.00016767,2]
[354259740,1740370252811,-887.69,0.00016767,2]
[354259741,1740370252820,-890.12,0.00016767,2]
[354259742,1740370252829,-500.0,0.00016767,2]
[354259743,1740370252838,-500.0,0.00016767,2]
[354259744,1740370252847,-648.60817201,0.00016767,2]
[354259745,1740370252856,-690.76,0.00016767,2]
[354259746,1740370252865,-689.31,0.00016767,2]
[354259747,1740370252874,-595.43,0.00016767,2]
[354259748,1740370252883,-327.78625114,0.00016767,2]
[354259749,1740370252892,-500.0,0.00016767,2]
[354259750,1740370252901,-500.0,0.00016767,2]
[354259751,1740370252911,-929.89,0.00016767,2]
[354259752,1740370252919,-500.0,0.00016767,2]
[354259753,1740370252928,-500.0,0.00016767,2]
[354259754,1740370252937,-688.58,0.00016767,2]
[354259755,1740370252946,-500.0,0.00016767,2]
[354259756,1740370252955,-500.0,0.00016767,2]
[354259757,1740370252964,-518.85,0.00016767,2]
[354259758,1740370252973,-500.0,0.00016767,2]
[354259759,1740370252982,-500.0,0.00016767,2]
[354259760,1740370252991,-783.77,0.00016767,2]
[354259761,1740370252999,-627.66,0.00016767,2]
[354259762,1740370253008,-500.0,0.00016767,2]
[354259763,1740370253017,-1124.15,0.00016767,2]
[354259764,1740370253026,-500.0,0.00016767,2]
[354259765,1740370253035,-500.0,0.00016767,2]
[354259766,1740370253044,-500.0,0.00016767,2]
[354259767,1740370253053,-500.0,0.00016767,2]
[354259768,1740370253063,-648.07,0.00016767,2]
[354259769,1740370253073,-500.0,0.00016767,2]
[354259770,1740370253082,-742.83,0.00016767,2]
[354259771,1740370253091,-544.47,0.00016767,2]
[354259772,1740370253100,-500.0,0.00016767,2]
[354259773,1740370253111,-538.11,0.00016767,2]
[354259774,1740370253121,-606.9,0.00016767,2]
[354259775,1740370253130,-761.19,0.00016767,2]
[354259776,1740370253140,-500.0,0.00016767,2]
[354259777,1740370253150,-942.27,0.00016767,2]
[354259778,1740370253160,-500.0,0.00016767,2]
[354259779,1740370253169,-1119.02,0.00016767,2]
[354259780,1740370253179,-719.34,0.00016767,2]
[354259781,1740370253188,-604.42,0.00016767,2]
[354259782,1740370253197,-500.0,0.00016767,2]
[354259783,1740370253207,-500.0,0.00016767,2]
[354259784,1740370253215,-531.87,0.00016767,2]
[354259785,1740370253223,-985.74,0.00016767,2]
[354259786,1740370253233,-955.59,0.00016767,2]
[354259787,1740370253242,-506.69,0.00016767,2]
[354259788,1740370253251,-1299.46,0.00016767,2]
[354259789,1740370253260,-500.0,0.00016767,2]
[354259790,1740370253269,-529.88,0.00016767,2]
[354259791,1740370253277,-500.0,0.00016767,2]
[354259792,1740370253289,-603.32,0.00016767,2]
[354259793,1740370253299,-2279.4,0.00016767,2]
[354259794,1740370253308,-500.0,0.00016767,2]
[354259795,1740370253317,-1087.58,0.00016767,2]
[354259796,1740370253327,-1355.43,0.00016767,2]
[354259797,1740370253335,-500.0,0.00016767,2]
[354259798,1740370253345,-1419.3,0.00016767,2]
[354259799,1740370253354,-990.6,0.00016767,2]
[354259800,1740370253363,-1326.58,0.00016767,2]
[354259801,1740370253372,-518.6,0.00016767,2]
[354259802,1740370253381,-1927.97,0.00016767,2]
[354259803,1740370253390,-1147.32,0.00016767,2]
[354259804,1740370253400,-1418.58,0.00016767,2]
[354259805,1740370253410,-500.0,0.00016767,2]
[354259806,1740370253420,-881.04,0.00016767,2]
[354259807,1740370253430,-500.0,0.00016767,2]
[354259808,1740370253439,-500.0,0.00016767,2]
[354259809,1740370253449,-2363.12,0.00016767,2]
[354259810,1740370253458,-2242.46,0.00016767,2]
[354259811,1740370253468,-500.0,0.00016767,2]
[354259812,1740370253477,-500.0,0.00016767,2]
[354259813,1740370253487,-500.0,0.00016767,2]
[354259814,1740370253497,-1062.87,0.00016767,2]
[354259815,1740370253507,-618.22,0.00016767,2]
[354259816,1740370253517,-500.0,0.00016767,2]
[354259817,1740370253526,-2156.86,0.00016767,2]
[354259818,1740370253536,-1442.62,0.00016767,2]
[354259819,1740370253545,-834.42,0.00016767,2]
[354259820,1740370253555,-2002.34,0.00016767,2]
[354259821,1740370253564,-693.2,0.00016767,2]
[354259822,1740370253573,-1463.93,0.00016767,2]
[354259823,1740370253582,-1507.75,0.00016767,2]
[354259824,1740370253592,-590.46,0.00016767,2]
[354259825,1740370253602,-1055.17,0.00016767,2]
[354259826,1740370253611,-731.62,0.00016767,2]
[354259827,1740370253621,-1951.74,0.00016767,2]
[354259828,1740370253630,-1780.85,0.00016767,2]
[354259829,1740370253639,-500.0,0.00016767,2]
[354259830,1740370253761,-500.0,0.00016767,2]
[354259831,1740370253772,-11267.85,0.00016767,2]
[354259832,1740370253783,-582.35,0.00016767,2]
[354259833,1740370253793,-822.47,0.00016767,2]
[354259834,1740370253802,-500.0,0.00016767,2]
[354259835,1740370253812,-773.02,0.00016767,2]
[354259836,1740370253822,-2054.61,0.00016767,2]
[354259837,1740370253832,-1628.62,0.00016767,2]
[354259838,1740370253842,-599.87,0.00016767,2]
[354259839,1740370253852,-3117.91,0.00016767,2]
[354259840,1740370253861,-4818.73,0.00016767,2]
[354259841,1740370253870,-500.0,0.00016767,2]
[354259842,1740370253880,-655.46,0.00016767,2]
[354259843,1740370253890,-5552.05,0.00016767,2]
[354259844,1740370253899,-500.0,0.00016767,2]
[354259845,1740370253910,-1407.53,0.00016767,2]
[354259846,1740370253921,-1303.65,0.00016767,2]
[354259847,1740370253930,-1935.81,0.00016767,2]
[354259848,1740370253940,-2523.47,0.00016767,2]
[354259849,1740370253949,-1791.53,0.00016767,2]
[354259850,1740370253959,-1194.26,0.00016767,2]
[354259851,1740370253968,-151.0,0.00016767,2]
[354259852,1740370253978,-445.283686,0.00016767,2]
[354259853,1740370253987,-3040.22,0.00016767,2]
[354259854,1740370253996,-555.36,0.00016767,2]
[354259855,1740370254006,-2447.95,0.00016767,2]
[354259856,1740370254015,-445.283686,0.00016767,2]
[354259857,1740370254024,-778.73,0.00016767,2]
[354259858,1740370254033,-2805.33,0.00016767,2]
[354259859,1740370254042,-1963.82,0.00016767,2]
[354259860,1740370254052,-1830.49,0.00016767,2]
[354259861,1740370254064,-500.0,0.00016767,2]
[354259862,1740370254075,-225.33702202,0.00016767,2]
[354259863,1740370254084,-3178.28,0.00016767,2]
[354259864,1740370254093,-1465.42,0.00016767,2]
[354259865,1740370254103,-3050.1,0.00016767,2]
[354259866,1740370254113,-1928.5,0.00016767,2]
[354259867,1740370254123,-1941.07,0.00016767,2]
[354259868,1740370254132,-748.66,0.00016767,2]
[354259869,1740370254142,-151.0,0.00016767,2]
[354259870,1740370254151,-500.0,0.00016767,2]
[354259871,1740370254162,-1478.69,0.00016767,2]
[354259872,1740370254171,-2173.14,0.00016767,2]
[354259873,1740370254181,-3736.47,0.00016767,2]
[354259874,1740370254191,-1220.36,0.00016767,2]
[354259875,1740370254200,-500.0,0.00016767,2]
[354259876,1740370254209,-1666.17,0.00016767,2]
[354259877,1740370254219,-2977.97,0.00016767,2]
[354259878,1740370254227,-1017.67,0.00016767,2]
[354259879,1740370254237,-1640.63,0.00016767,2]
[354259880,1740370254247,-6338.02,0.00016767,2]
[354259881,1740370254256,-2867.15,0.00016767,2]
[354259882,1740370254266,-841.89,0.00016767,2]
[354259883,1740370254275,-500.0,0.00016767,2]
[354259884,1740370254285,-2143.08,0.00016767,2]
[354259885,1740370254294,-500.0,0.00016767,2]
[354259886,1740370254304,-2766.52,0.00016767,2]
[354259887,1740370254312,-931.52,0.00016767,2]
[354259888,1740370254323,-500.0,0.00016767,2]
[354259889,1740370254332,-500.0,0.00016767,2]
[354259890,1740370254342,-549.15,0.00016767,2]
[354259891,1740370254352,-500.0,0.00016767,2]
[354259892,1740370254363,-2546.08,0.00016767,2]
[354259893,1740370254374,-500.0,0.00016767,2]
[354259894,1740370254384,-1331.74,0.00016767,2]
[354259895,1740370254394,-1142.48,0.00016767,2]
[354259896,1740370254404,-1700.65,0.00016767,2]
[354259897,1740370254413,-500.0,0.00016767,2]
[354259898,1740370254423,-1357.58,0.00016767,2]
[354259899,1740370254432,-3135.47,0.00016767,2]
[354259900,1740370254442,-500.0,0.00016767,2]
[354259901,1740370254452,-2422.92,0.00016767,2]
[354259902,1740370254461,-500.0,0.00016767,2]
[354259903,1740370254470,-1200.83,0.00016767,2]
[354259904,1740370254480,-1256.88,0.00016767,2]
[354259905,1740370254490,-985.51,0.00016767,2]
[354259906,1740370254499,-2703.34,0.00016767,2]
[354259907,1740370254509,-1243.49,0.00016767,2]
[354259908,1740370254518,-500.0,0.00016767,2]
[354259909,1740370254528,-2863.31,0.00016767,2]
[354259910,1740370254537,-2741.9,0.00016767,2]
[354259911,1740370254547,-3475.77,0.00016767,2]
[354259912,1740370254557,-807.12,0.00016767,2]
[354259913,1740370254567,-2094.5,0.00016767,2]
[354259914,1740370254576,-1429.41,0.00016767,2]
[354259915,1740370254586,-656.42,0.00016767,2]
[354259916,1740370254595,-1109.03,0.00016767,2]
[354259917,1740370254605,-3155.01,0.00016767,2]
[354259918,1740370254615,-1836.26,0.00016767,2]
[354259919,1740370254624,-2861.82,0.00016767,2]
[354259920,1740370254634,-500.0,0.00016767,2]
[354259921,1740370254644,-1222.45,0.00016767,2]
[354259922,1740370254654,-1059.77,0.00016767,2]
[354259923,1740370254666,-1881.25,0.00016767,2]
[354259924,1740370254676,-2516.19,0.00016767,2]
[354259925,1740370254685,-1026.41,0.00016767,2]
[354259926,1740370254695,-500.0,0.00016767,2]
[354259927,1740370254704,-1040.13,0.00016767,2]
[354259928,1740370254714,-1687.26,0.00016767,2]
[354259929,1740370254723,-990.37,0.00016767,2]
[354259930,1740370254733,-500.0,0.00016767,2]
[354259931,1740370254743,-1952.17,0.00016767,2]
[354259932,1740370254752,-3199.22,0.00016767,2]
[354259933,1740370254762,-1386.4,0.00016767,2]
[354259934,1740370254771,-1126.95,0.00016767,2]
[354259935,1740370254781,-2480.34,0.00016767,2]
[354259936,1740370254791,-2631.9,0.00016767,2]
[354259937,1740370254801,-4039.48,0.00016767,2]
[354259938,1740370254810,-572.26,0.00016767,2]
[354259939,1740370254820,-3534.61,0.00016767,2]
[354259940,1740370254830,-500.0,0.00016767,2]
[354259941,1740370254839,-3523.63,0.00016767,2]
[354259942,1740370254849,-1787.16,0.00016767,2]
[354259943,1740370254858,-1888.6,0.00016767,2]
[354259944,1740370254868,-9640.15,0.00016767,2]
[354259945,1740370254878,-500.0,0.00016767,2]
[354259946,1740370254887,-2409.95,0.00016767,2]
[354259947,1740370254897,-2352.02,0.00016767,2]
[354259948,1740370254907,-1485.16,0.00016767,2]
[354259949,1740370254917,-500.0,0.00016767,2]
[354259950,1740370254927,-811.15,0.00016767,2]
[354259951,1740370254937,-500.0,0.00016767,2]
[354259952,1740370254946,-583.37,0.00016767,2]
[354259953,1740370254956,-2357.84,0.00016767,2]
[354259954,1740370254966,-739.0,0.00016767,2]
[354259955,1740370254975,-709.38,0.00016767,2]
[354259956,1740370254985,-4243.19,0.00016767,2]
[354259957,1740370254994,-1367.15,0.00016767,2]
[354259958,1740370255004,-3442.95,0.00016767,2]
[354259959,1740370255013,-2307.0,0.00016767,2]
[354259960,1740370255022,-853.06,0.00016767,2]
[354259961,1740370255032,-500.0,0.00016767,2]
[354259962,1740370255041,-500.0,0.00016767,2]
[354259963,1740370255051,-239.87115715,0.00016776,2]
[354259964,1740370255060,-500.0,0.00016794,2]
[354259965,1740370255072,-275.84021289,0.000168,2]
[354259966,1740370255082,-1200.0,0.000168,6]
[354259967,1740370255091,-49913.0,0.00016803,2]
[354259968,1740370255100,-506.08,0.00016815,7]
[354259969,1740370255111,-506.08,0.00016815,7]
[354259970,1740370255120,-1413.76,0.0001682,2]
[354259971,1740370255129,-500.0,0.00016821,2]
[354259972,1740370255138,-800.80760445,0.00016831,2]
[354259973,1740370255150,-1560.9416395,0.00016838,2]
[354259974,1740370255161,-500.0,0.00016848,2]
[354259975,1740370255171,-708.07,0.00016848,2]
[354259976,1740370255180,-708.07,0.00016848,2]
[354259977,1740370255189,-300.0,0.00016848,2]
[354259978,1740370255199,-500.0,0.00016848,2]
[354259979,1740370255209,-931.01,0.00016849,2]
[354259980,1740370255218,-500.0,0.00016849,2]
[354259981,1740370255228,-538.99395,0.00016849,2]
[354259982,1740370255237,-586.522083,0.00016849,2]
[354259983,1740370255246,-654.56,0.00016849,2]
[354259984,1740370255256,-561.51,0.00016849,2]
[354259985,1740370255265,-500.0,0.00016849,2]
[354259986,1740370255274,-500.0,0.00016849,2]
[354259987,1740370255283,-500.0,0.00016849,2]
[354259988,1740370255292,-500.0,0.00016849,2]
[354259989,1740370255301,-632.37,0.00016849,2]
[354259990,1740370255311,-500.0,0.00016849,2]
[354259991,1740370255320,-500.0,0.00016849,2]
[354259992,1740370255329,-500.0,0.00016849,2]
[354259993,1740370255338,-500.0,0.00016849,2]
[354259994,1740370255347,-500.0,0.00016849,2]
[354259995,1740370255357,-500.0,0.00016849,2]
[354259996,1740370255366,-536.73,0.00016849,2]
[354259997,1740370255375,-500.0,0.00016849,2]
[354259998,1740370255385,-500.0,0.00016849,2]
[354259999,1740370255394,-500.0,0.00016849,2]
[354260000,1740370255403,-565.79,0.00016849,2]
[354260001,1740370255414,-585.43,0.00016849,2]
[354260002,1740370255423,-674.94,0.00016849,2]
[354260003,1740370255433,-500.0,0.00016849,2]
[354260004,1740370255442,-500.0,0.00016849,2]
[354260005,1740370255451,-745.66,0.00016849,2]
[354260006,1740370255460,-699.72,0.00016849,2]
[354260007,1740370255470,-500.0,0.00016849,2]
[354260008,1740370255480,-1904.22,0.00016849,2]
[354260009,1740370255489,-526.35,0.00016849,2]
[354260010,1740370255499,-500.0,0.00016849,2]
[354260011,1740370255508,-1002.13,0.00016849,2]
[354260012,1740370255517,-500.0,0.00016849,2]
[354260013,1740370255526,-1134.15,0.00016849,2]
[354260014,1740370255536,-500.0,0.00016849,2]
[354260015,1740370255546,-500.0,0.00016849,2]
[354260016,1740370255555,-571.09,0.00016849,2]
[354260017,1740370255564,-500.0,0.00016849,2]
[354260018,1740370255574,-553.86,0.00016849,2]
[354260019,1740370255583,-1052.61,0.00016849,2]
[354260020,1740370255592,-850.74,0.00016849,2]
[354260021,1740370255601,-1131.97,0.00016849,2]
[354260022,1740370255610,-500.0,0.00016849,2]
[354260023,1740370255620,-899.17,0.00016849,2]
[354260024,1740370255629,-500.0,0.00016849,2]
[354260025,1740370255638,-787.33,0.00016849,2]
[354260026,1740370255647,-500.0,0.00016849,2]
[354260027,1740370255656,-500.0,0.00016849,2]
[354260028,1740370255665,-1272.39,0.00016849,2]
[354260029,1740370255674,-500.0,0.00016849,2]
[354260030,1740370255683,-769.41,0.00016849,2]
[354260031,1740370255692,-891.59,0.00016849,2]
[354260032,1740370255701,-500.0,0.00016849,2]
[354260033,1740370255710,-746.3,0.00016849,2]
[354260034,1740370255719,-512.65,0.00016849,2]
[354260035,1740370255729,-1139.12,0.00016849,2]
[354260036,1740370255738,-629.92,0.00016849,2]
[354260037,1740370255747,-1166.53,0.00016849,2]
[354260038,1740370255756,-259.34304448,0.00016849,2]
[354260039,1740370255765,-500.0,0.00016849,2]
[354260040,1740370255774,-500.0,0.00016849,2]
[354260041,1740370255783,-500.0,0.00016849,2]
[354260042,1740370255792,-654.42,0.00016849,2]
[354260043,1740370255802,-634.77565892,0.00016849,2]
[354260044,1740370255811,-620.82,0.00016849,2]
[354260045,1740370255820,-500.0,0.00016849,2]
[354260046,1740370255830,-682.77,0.00016849,2]